Cogmind - Beta 14 @@@ ROGUE MODE // 2024.10.10 @ 02:18:57 Player: celerysam Result: Destroyed by as-66035 with Assembled Blade Performance ------------- Evolutions (1) 500 Regions Visited (4) 800 Robots Destroyed (16) 80 Value Destroyed (420) 420 Prototype IDs (24) 480 Alien Tech Used (0) 0 Bonus (300) 300 TOTAL SCORE: 2580 Bonus ------- Aligned with FarCom 300 Cogmind --------- Core Integrity 0/400 Matter 113/300 Energy 100/100 System Corruption 5% Temperature Cool (20) Movement Core (250) Ox4 Location -9/Exiles Parts ------- > --- POWER (1) -------- (None) > --- PROPULSION (3) --- (None) > --- UTILITY (3) ------ Lightpack 2.0 > --- WEAPON (2) ------- AWS/Thermal > --- INVENTORY (40) --- Cloak of Protection Authchip [R/Combat] Minigun Light Cannon Light Cannon Katana Peak State ------------ > --- POWER ------------ Ion Engine > --- PROPULSION ------- (None) > --- UTILITY ---------- Lightpack 2.0 > --- WEAPON ----------- AWS/Thermal > --- INVENTORY -------- Cloak of Protection Authchip [R/Combat] Minigun Light Cannon Light Cannon Katana [Rating: 49] Favorites ----------- Power Light Ion Engine Engine Light Ion Engine Propulsion Hover Unit Treads Light Treads Wheel Compact Wheel Hover Unit Hover Unit Utility Small Storage Unit Device Cooling System Storage Small Storage Unit Processor Advanced Visual Processing Unit Weapon Light Cannon Energy Gun Improved EM Shotgun Ballistic Gun Minigun Ballistic Cannon Light Cannon Slashing Weapon Katana Build | -11 -10 -9 -9 -9 ------- Run | Yrd Mat Mat Min Exi Slots Evolved 2 | . . 2 . . Power . | . . . . . Propulsion 1 | . . 1 . . Utility 1 | . . 1 . . Weapon . | . . . . . Parts Attached 35 | 4 11 16 . 4 Power 6 | 1 . 4 . 1 Engine 6 | 1 . 4 . 1 Core . | . . . . . Reactor . | . . . . . Propulsion 7 | 2 2 3 . . Treads 1 | . . 1 . . Leg . | . . . . . Wheel 3 | 2 . 1 . . Hover 3 | . 2 1 . . Flight . | . . . . . Utility 10 | 1 4 3 . 2 Device 3 | . 2 1 . . Storage 6 | 1 2 1 . 2 Processor 1 | . . 1 . . Hackware . | . . . . . Protection . | . . . . . Artifact . | . . . . . Weapon 12 | . 5 6 . 1 Energy Gun 3 | . . 2 . 1 Energy Cannon . | . . . . . Ballistic Gun 2 | . . 2 . . Ballistic Cannon 6 | . 5 1 . . Launcher . | . . . . . Special Weapon . | . . . . . Impact Weapon . | . . . . . Slashing Weapon 1 | . . 1 . . Piercing Weapon . | . . . . . Special Melee Weapon . | . . . . . Unidentified Prototypes 1 | . . 1 . . Parts Lost 8 | . . 3 . 5 Power 2 | . . . . 2 Propulsion 5 | . . 3 . 2 Utility . | . . . . . Weapon 1 | . . . . 1 Highest Loss Streak 5 | . . 2 . 5 To Critical Strikes . | . . . . . Average Slot Usage (%) 88 | . 94 91 88 75 Engine 11 | . 14 11 11 9 Treads 4 | . . 1 11 9 Wheel 10 | . 21 2 11 8 Hover 9 | . 6 20 . . Device 10 | . 12 17 . . Storage 15 | . 12 13 22 19 Processor 4 | . . 1 11 8 Energy Gun 5 | . . 4 11 10 Ballistic Gun 1 | . . 4 . . Ballistic Cannon 11 | . 25 11 . . Slashing Weapon 4 | . . 2 11 9 Peak Build Rating 49 | 4 9 17 17 49 Average Rating 13 | 3 7 13 17 21 On Entrance 9 | . 4 8 17 17 Naked Turns . | . . . . . Heaviest Build 20 | 8 17 20 14 18 Greatest Support 32 | 26 32 24 16 16 Greatest Overweight (x) 5 | 1 . 5 . 5 Average Overweight (x) . | . . . . . Largest Inventory Capacity 40 | 8 8 8 8 40 Average Capacity 8 | 7 7 8 8 13 Most Carried 9 | 8 8 8 8 9 Average Carried 7 | 4 7 7 8 7 Final Capacity 40 | 8 8 8 8 40 Final Carried 8 | 8 7 8 8 6 Class Distribution -------------------- 100% | Mutant Dominant Class ---------------- Mutant | -10/Materials Mutant | -9/Materials Mutant | -9/Mines Mutant | -9/Exiles Resources | -11 -10 -9 -9 -9 ----------- Run | Yrd Mat Mat Min Exi Matter Collected 593 | 219 101 273 . . Remotely . | . . . . . Salvage Created 485 | . 179 306 . . Parts 36 | . 17 19 . . Haulers Intercepted 2 | . 1 1 . . Recyclers Shooed . | . . . . . Parts Field Recycled . | . . . . . Retrieved Matter . | . . . . . Parts Self-Destructed . | . . . . . Prevented . | . . . . . Kills | -11 -10 -9 -9 -9 ------- Run | Yrd Mat Mat Min Exi Combat Hostiles Destroyed 9 | . 4 5 . . Guns 1 | . . 1 . . Cannons 8 | . 4 4 . . Classes Destroyed 6 | . 4 2 . . Worker 1 | . 1 . . . Hauler 2 | . 1 1 . . Recycler 1 | . . 1 . . Watcher 3 | . 2 1 . . Grunt 7 | . 4 3 . . Sentry 2 | . . 2 . . Best Kill Streak 5 | . 5 2 . . Combat Bots Only 4 | . 4 2 . . Max Kills in Single Turn 1 | . 1 1 . . Gunslinging . | . . . . . Exploded . | . . . . . Melee . | . . . . . Uniques/NPCs Destroyed . | . . . . . Combat | -11 -10 -9 -9 -9 -------- Run | Yrd Mat Mat Min Exi Hostile Shots Fired 139 | . 20 32 . 87 Missed 42 | . 8 12 . 22 Damage Taken 1573 | . 149 284 . 1140 Core 444 | . 29 15 . 400 Absorbed by Shields . | . . . . . Core Remaining (%) 94 | 100 88 . . . Volleys Fired 39 | . 18 21 . . Largest 2 | . 2 2 . . Hottest 70 | . 70 70 . . Shots Fired 73 | . 36 36 . 1 Gun 8 | . . 7 . 1 Cannon 65 | . 36 29 . . Launcher . | . . . . . Special . | . . . . . Kinetic 66 | . 36 30 . . Thermal . | . . . . . Explosive . | . . . . . Electromagnetic 7 | . . 6 . 1 Robot Hit Streak 6 | . 3 6 . 3 Robot Miss Streak 4 | . 2 4 . . Penetration Max . | . . . . . Secondary Targets . | . . . . . Shots Hit Robots 46 | . 21 24 . 1 Core Hits 19 | . 9 10 . . Critical Kills . | . . . . . Critical Parts Destroyed . | . . . . . Critical Strikes 1 | . 1 . . . Blast 1 | . 1 . . . Melee Attacks 3 | . . 3 . . Impact . | . . . . . Slashing 3 | . . 3 . . Piercing . | . . . . . Sneak Attacks 1 | . . 1 . . Combat Hostiles . | . . . . . Follow-up Attacks . | . . . . . Damage Inflicted 922 | . 378 544 . . Guns 95 | . . 95 . . Cannons 650 | . 378 272 . . Explosions 45 | . . 45 . . Melee 127 | . . 127 . . Ramming 5 | . . 5 . . Kinetic 665 | . 378 287 . . Thermal 45 | . . 45 . . Explosive . | . . . . . Electromagnetic 80 | . . 80 . . Impact . | . . . . . Slashing 127 | . . 127 . . Piercing . | . . . . . Highest Corruption 5 | . . 5 5 5 Average Corruption 5 | . . 5 5 5 Corruption Purged . | . . . . . Corruption Blocked . | . . . . . Effects 16 | . . 7 4 5 Message Errors 7 | . . 4 1 2 Matter Fused 1 | . . . . 1 Heat Flow Errors 2 | . . 1 1 . Energy Discharges 2 | . . 1 1 . Parts Fused 1 | . . . . 1 Data Loss (minor) 1 | . . . 1 . Data Loss (major) 1 | . . 1 . . Misfires 1 | . . . . 1 Overload Shots . | . . . . . Overflow Damage 16 | . . 16 . . Projectiles . | . . . . . Explosions 16 | . . 16 . . Melee . | . . . . . Knockbacks 2 | . 1 1 . . Impact . | . . . . . Kinetic 2 | . 1 1 . . Secondary . | . . . . . Self-Inflicted Damage 35 | . . 35 . . Shots 1 | . . 1 . . Rammed 1 | . . 1 . . Targets Rammed 1 | . . 1 . . Kicked . | . . . . . Crushed . | . . . . . Highest Temperature 229 | . 30 229 131 32 Average Temperature 49 | . 17 55 73 18 Received Heat Transfer 344 | . 81 123 . 140 Siege Activations . | . . . . . Robots Corrupted . | . . . . . Combat Hostiles . | . . . . . Parts Fried . | . . . . . Impact Corruptions . | . . . . . Robots Melted . | . . . . . Combat Hostiles . | . . . . . Parts Melted . | . . . . . Heat Transferred . | . . . . . Parts Sabotaged . | . . . . . Parts Stolen . | . . . . . Parts Stripped . | . . . . . Power Chain Reactions 1 | . . 1 . . Alert | -11 -10 -9 -9 -9 ------- Run | Yrd Mat Mat Min Exi Peak Influence 253 | . 187 253 98 . Initial 98 | . . 78 98 . Average 117 | . 73 184 98 . Maximum Alert Level 1 | . . 1 . . Low Security (%) 76 | 100 100 42 100 . Level 1 23 | . . 57 . . Level 2 . | . . . . . Level 3 . | . . . . . Level 4 . | . . . . . Level 5 . | . . . . . High Security . | . . . . . Max Security . | . . . . . Squads Dispatched 2 | . 1 1 . . Investigation 1 | . . 1 . . Extermination . | . . . . . Reinforcement 1 | . 1 . . . Assault . | . . . . . Garrison . | . . . . . Intercept . | . . . . . Searches Triggered . | . . . . . Construction Impeded . | . . . . . Haulers Reinforced . | . . . . . Active Scanning Responses . | . . . . . Cargo Convoy Interrupts . | . . . . . Stealth | -11 -10 -9 -9 -9 --------- Run | Yrd Mat Mat Min Exi Distress Signals . | . . . . . Communications Jammed . | . . . . . Distress Signals . | . . . . . Times Spotted 25 | . 7 11 . 7 Peak Tracking Total 9 | . 3 2 . 9 Tactical Retreats . | . . . . . Traps | -11 -10 -9 -9 -9 ------- Run | Yrd Mat Mat Min Exi Traps Triggered 1 | . . 1 . . Indirectly . | . . . . . Trap Hack Attempts . | . . . . . Triggered . | . . . . . Disarmed . | . . . . . Reprogrammed . | . . . . . Reused . | . . . . . Traps Extracted . | . . . . . Installed . | . . . . . Triggered . | . . . . . Machines | -11 -10 -9 -9 -9 ---------- Run | Yrd Mat Mat Min Exi Machines Disabled 2 | . 1 1 . . Max in Single Turn 1 | . 1 1 . . Machines Repaired . | . . . . . Machines Dismantled . | . . . . . Machines Sabotaged . | . . . . . Overloaded Fab Kills . | . . . . . Hacking | -11 -10 -9 -9 -9 --------- Run | Yrd Mat Mat Min Exi Machines Accessed 6 | . 1 4 . 1 Terminals 4 | . 1 3 . . Fabricators . | . . . . . Repair Stations . | . . . . . Recycling Units 1 | . . 1 . . Scanalyzers . | . . . . . Garrison Access . | . . . . . Total Hacks 10 | . 1 8 . 1 Successful 5 | . . 4 . 1 Failed 5 | . 1 4 . . Catastrophic 1 | . 1 . . . Database Lockouts . | . . . . . Manual 8 | . 1 6 . 1 Terminals 8 | . 1 7 . . Fabricators . | . . . . . Repair Stations . | . . . . . Recycling Units 1 | . . 1 . . Scanalyzers . | . . . . . Garrison Access . | . . . . . Terminal Hacks 3 | . . 2 . 1 Alert Level 1 | . . 1 . . Recall Investigation 1 | . . 1 . . Derelict Proto ID Bank 1 | . . . . 1 Fabricator Hacks . | . . . . . Repair Station Hacks . | . . . . . Recycling Unit Hacks 1 | . . 1 . . Report Inventory 1 | . . 1 . . Scanalyzer . | . . . . . Garrison Access Hacks . | . . . . . Unauthorized Hacks 1 | . . 1 . . Terminals 1 | . . 1 . . Assimilate 1 | . . 1 . . Fabricators . | . . . . . Repair Stations . | . . . . . Recycling Units . | . . . . . Scanalyzers . | . . . . . Garrison Access . | . . . . . Data Cores Recovered . | . . . . . Used . | . . . . . Hacking Detections 3 | . . 3 . . Full Trace Events . | . . . . . Feedback Events . | . . . . . Feedback Blocked . | . . . . . Robot Schematics Acquired . | . . . . . Robots Built . | . . . . . Authchips . | . . . . . Time . | . . . . . Total Robot Build Rating . | . . . . . Part Schematics Acquired . | . . . . . Parts Built . | . . . . . Authchips . | . . . . . Time . | . . . . . Total Part Build Rating . | . . . . . Parts Repaired . | . . . . . Time . | . . . . . Parts Recycled . | . . . . . Recycled Matter . | . . . . . Retrieved Matter . | . . . . . Retrieved Components . | . . . . . Parts Scanalyzed . | . . . . . Part Schematics Acquired . | . . . . . Parts Damaged . | . . . . . Bothacking | -11 -10 -9 -9 -9 ------------ Run | Yrd Mat Mat Min Exi Used RIF Installer . | . . . . . Robots Hacked . | . . . . . Non-combat . | . . . . . Combat . | . . . . . Robot Hacks Applied . | . . . . . Relay Couplers Released . | . . . . . Fabnet Peak Effective % . | . . . . . Robots Rewired . | . . . . . Allies Hacked . | . . . . . Hacks Repelled . | . . . . . Allies | -11 -10 -9 -9 -9 -------- Run | Yrd Mat Mat Min Exi Total Allies 1 | . . 1 . . Largest Group 1 | . . 1 1 1 Highest-Rated Group 10 | . . 10 10 10 Highest-Rated Ally 10 | . . 10 10 10 Total Orders . | . . . . . Ally Attacks . | . . . . . Total Damage . | . . . . . Kills . | . . . . . Allies Corrupted . | . . . . . Allies Melted . | . . . . . Intel | -11 -10 -9 -9 -9 ------- Run | Yrd Mat Mat Min Exi Robot Analysis Total . | . . . . . Derelict Logs Recovered 1 | . . . 1 . Drone Launches . | . . . . . Drone Recoveries . | . . . . . Exploration | -11 -10 -9 -9 -9 ------------- Run | Yrd Mat Mat Min Exi Turns Passed 893 | 61 230 307 142 153 Spaces Moved 773 | 52 180 277 133 131 Core 17 | 4 . 4 . 9 Treads 3 | . . 3 . . Legs . | . . . . . Wheels 476 | 48 127 46 133 122 Hover 277 | . 53 224 . . Flight . | . . . . . Fastest Speed 50 | 50 56 52 100 100 Average Speed 84 | 88 80 67 100 109 Slowest Speed 300 | 100 90 300 100 300 Overloaded Moves . | . . . . . Propulsion Burnouts . | . . . . . Robots Hopped . | . . . . . Cave-ins Triggered . | . . . . . Exploration Rate (%) 29 | 4 24 36 40 45 Regions Visited 4 Branch Regions 2 Pre-discovered Areas . | . . . . . Known Exits Taken 1 | . . . 1 . Unknown Exits Taken 3 | 1 1 1 . . Scrap Searched . | . . . . . Spaces Dug . | . . . . . Terrain Destroyed . | . . . . . Melee . | . . . . . Projectile . | . . . . . AOE . | . . . . . Terrain Rammed . | . . . . . Walls Destroyed . | . . . . . Machines Disabled . | . . . . . Actions | -11 -10 -9 -9 -9 --------- Run | Yrd Mat Mat Min Exi Total 936 | 67 230 355 142 142 Wait 37 | . 4 23 10 . Move 769 | 51 179 276 132 131 Hop . | . . . . . Pick Up 28 | 12 7 7 . 2 Fast Attach 15 | . 8 5 . 2 Attach 8 | 4 . 2 . 2 Detach 3 | . 1 1 . 1 Swap 12 | . 3 9 . . Drop 21 | . 10 7 . 4 Fire 39 | . 18 21 . . Melee 3 | . . 3 . . Ram 1 | . . 1 . . Kick . | . . . . . Crush . | . . . . . Escape Stasis . | . . . . . Rewire . | . . . . . Trap . | . . . . . Miscellaneous . | . . . . . Route ------- -11/Scrapyard -10/Materials -9/Materials (discovered 2 exits: [*Mat] / [*Min]) -9/Mines -9/Exiles (discovered 1 exit: [*Min]) History --------- Turn | Location | Event 26 | -11/Scrapyard | Discovered new exit (range 14) 62 | -11/Scrapyard | Entered Materials 267 | -10/Materials | Discovered new exit (range 13) 292 | -10/Materials | Entered another Materials area 292 | -9/Materials | Evolved 2 slots: Propulsion x1, Utility x1 314 | -9/Materials | Build established: Mutant 458 | -9/Materials | Discovered new exit (range 5) 582 | -9/Materials | Discovered new exit (range 8) 599 | -9/Materials | Entered Mines 599 | -9/Mines | Accompanied by 1 ally 601 | -9/Mines | Assembled infested the area 682 | -9/Mines | Identified exit to Exiles 741 | -9/Mines | Entered Exiles 741 | -9/Exiles | Accompanied by 1 ally 754 | -9/Exiles | Discovered new exit (range 19) 766 | -9/Exiles | Met 8R-AWN 782 | -9/Exiles | Met EX-HEX 814 | -9/Exiles | Met EX-BIN 828 | -9/Exiles | Aligned with FarCom system 829 | -9/Exiles | Given EX-Vault access code 830 | -9/Exiles | Attacked by the Exiles 853 | -9/Exiles | Opened EX-Vault 865 | -9/Exiles | Found Lightpack 2.0 867 | -9/Exiles | Found Cloak of Protection 874 | -9/Exiles | Found AWS/Thermal 883 | -9/Exiles | Core integrity fell below 50% 894 | -9/Exiles | Core integrity fell below 20% 894 | -9/Exiles | Destroyed by as-66035 with Assembled Blade Last Messages --------------- 00867_ Acquired Cloak of Protection. 00868_ HCTRWLTOCI1 &UI2EJRAHBGV C 00869_ Com. Wheel destroyed. 00869_ Imp. EM Shotgun destroyed. 00873_ Critical hit (Burn: +80). 00873_ Lgt. Treads destroyed. 00874_ Acquired AWS/Thermal. 00874_ Knocked back. 00886_ Penetrated by HV Slug. 00887_ Ion Engine destroyed. 00889_ Penetrated by HV Slug. 00891_ HV Slug penetrates as-14038. 00891_ HV Slug penetrates as-66035. 00893_ Penetrated by HV Slug. 00893_ HV Slug penetrates as-34030. 00893_ as-34030 suffers critical hit (Destroy). 00893_ Penetrated by HV Slug. 00893_ HV Slug penetrates as-34030. 00893_ as-34030 suffers critical hit (Destroy). 00893_ as-34030 destroyed. Map ----- +----------------------------------------------------+ | | | | | | | | | | | | | | | | | | | | | | | | | | | | | | | | | | | ????????????????????#########????????????????????? | | ????????????????????# # #????????????????????? | | ????????????????????#[* X #????????????????????? | | ????????????????????#! ! #????????????????????? | | ????????????????????# ! #????????????????????? | | ????????????????????## a ##????????????????????? | | ????????????????????#X #?????????????????????? | | ????????????????????## aa#?????????????????????? | | ?????????????????????# @ #?????????????????????? | | ?????????????????????# ! #???#####?????????????? | | ?????????????????????#a% #??"""""#?????????????? | | ?????????????????????# ## """#?????????????? | | ?????????????????????# a X""#?????????????? | | ?????????????????????# ## """#?????????????? | | ??????????????#####??# #??"""""#?????????????? | | ?????????????#""""""?# #???#####?????????????? | | ?????????????#"""" ## #?????????????????????? | | ?????????????#""X" a #?????????????????????? | | ?????????????#" #?????????????????????? | | ?????????????#" ## #?????????????????????? | | ?????????????#""""""?# #?#########???????????? | | ?????????????##"###??# #?#"""""""#???????????? | | ?????????????? ??????# #?#"""""""#???????????? | | ?????????????????????# #?#"""""""#???????????? | | ????????????????????## ###"" """"#???????????? | | ????????????????????#" """"#???????????? | | ????????????????????#" """#???????????? | | ????????????????????#" """#???????????? | | ????????????????????#" """#???????????? | | ????????????????????#" """#???????????? | | ????????????????????#" """## ?????????? | | ????????????????????## """"""?????????? | | ?????????????????????# """###?????????? | +----------------------------------------------------+ Best States ------------- Heat Dissipation 50 Energy Generation 12 Energy Capacity 325 Matter Stores 300 Matter Capacity 450 Sight Range 20 Terrain Scan Density 10 Additional Mass Support 6 Evasion (%) 54 Recoil Reduction 1 Authchip Count 1 Item Schematics ----------------- None Robot Schematics ------------------ None Fabricated ------------ Nothing Alien Tech Used ----------------- None Achievements -------------- None Challenges ------------ None Game ------ Seed CannonBehemothShielding Manual? 0 Play Time 00:25:47 Cumulative 175.7 hours Start 2024.10.10 @ 00:51:56 End 2024.10.10 @ 02:18:57 Sessions 1 Manual Loads 0 Difficulty Rogue Special Mode None Game No. 238 Rogue 238 Adventurer 0 Explorer 0 Win Type - Total 0 Types 0/0/0/0/0/0/0/0/0 Lore% 32 Gallery% 62 Achievement% 41 Wizard Run 0 Options --------- Layout 0 ASCII 0 Keyboard 0 Movement Mouse Keybinds 0 Fullscreen 1 Font 24/Smallcaps Map View 76x50 Zoom Use 0% Tactical HUD 1 Map Filters NONE Filters NONE Steam 1 RUN: c2a32732-40bf-4cd2-9669-2866454efaf9